bitfinex/quotes_ETHUSD_20251218
["timestamp","ask_amount","ask_price","bid_price","bid_amount"]
[1766099265956,0.561,2831.6,2831.0,0.002]
[1766099266153,6.1669,2831.5,2831.0,0.002]
[1766099266990,0.561,2831.6,2830.6,0.46438023]
[1766099267194,2.4349,2831.0,2830.3,0.602]
[1766099267398,2.4349,2830.6,2830.3,0.602]
[1766099267604,6.1669,2830.5,2829.9,0.002]
[1766099267818,0.562,2830.9,2829.9,0.002]
[1766099267972,6.1669,2830.8,2830.0,0.46438023]
[1766099268171,0.405504,2831.3,2830.0,0.46438023]
[1766099268372,0.562,2831.2,2830.0,0.46438023]
[1766099268612,2.4349,2831.3,2830.1,0.03733444]
[1766099268825,1.06203524,2831.5,2830.4,2.1125]
[1766099268998,1.06203524,2831.5,2830.1,0.002]
[1766099268999,0.562,2831.4,2830.6,2.6865]
[1766099269307,0.562,2831.4,2830.3,2.6865]
[1766099269510,3.52932762,2833.5,2830.8,0.574]
[1766099269723,1.06168195,2832.3,2831.0,2.6865]
[1766099269871,3.732,2832.0,2831.0,2.6865]
[1766099270072,6.1669,2831.8,2831.0,2.6865]
[1766099270271,3.732,2831.5,2830.7,2.68]
[1766099270576,6.1669,2831.5,2830.7,2.68]
[1766099270978,6.1669,2831.5,2830.3,3.99753958]
[1766099271178,0.562,2831.7,2830.2,0.6]
[1766099271179,3.732,2831.1,2830.2,0.6]
[1766099271383,6.1669,2831.0,2830.2,0.6]
[1766099271584,6.1669,2831.0,2830.3,0.31659802]
[1766099271801,0.562,2831.1,2830.3,0.31659802]
[1766099272013,0.562,2831.1,2830.2,0.6]
[1766099272014,2.4349,2830.9,2830.2,0.6]
[1766099272185,6.1669,2830.9,2830.2,0.6]
[1766099273113,4.294,2831.1,2830.3,2.087]
[1766099273299,4.294,2831.1,2830.4,0.46438023]
[1766099273982,6.1669,2830.9,2830.2,0.6]
[1766099275217,6.1669,2830.9,2830.3,0.26828]
[1766099275416,2.4349,2830.8,2830.2,0.6]
[1766099275619,6.1669,2830.8,2830.2,0.6]
[1766099277023,2.4349,2830.8,2830.2,0.6]
[1766099277917,3.732,2830.8,2830.2,0.6]
[1766099278122,6.1669,2830.7,2830.2,0.6]
[1766099278321,6.7289,2830.7,2830.2,0.6]
[1766099278503,2.4349,2830.6,2830.2,0.6]
[1766099278886,6.1669,2830.6,2830.2,0.6]
[1766099279018,0.562,2830.6,2830.2,0.6]
[1766099280307,2.4349,2831.2,2830.4,0.574]
[1766099280619,2.4349,2831.0,2830.2,0.6]
[1766099280822,2.4349,2831.0,2830.3,0.46438023]
[1766099280823,0.562,2830.9,2830.3,0.46438023]
[1766099281025,6.7289,2830.9,2830.2,0.6]
[1766099281404,6.1669,2830.8,2830.2,0.6]
[1766099282026,2.6033,2830.7,2830.2,0.6]
[1766099282393,6.0703,2830.7,2830.2,0.6]
[1766099283128,6.0703,2831.0,2830.2,1.37330825]
[1766099283331,0.562,2830.9,2830.4,2.5969]
[1766099283625,0.562,2830.9,2830.5,2.0229]
[1766099284217,3.467,2830.8,2830.2,1.37330825]
[1766099284421,2.6033,2830.7,2830.2,0.6]
[1766099284614,6.0703,2830.7,2830.2,0.6]
[1766099284809,0.562,2831.2,2830.4,0.46438023]
[1766099285031,6.0703,2831.3,2830.3,0.46438023]
[1766099285196,6.0703,2831.3,2830.5,2.5861]
[1766099285400,0.562,2831.2,2830.5,2.5861]
[1766099286034,6.0703,2831.3,2830.5,2.5861]
[1766099286229,6.6323,2831.3,2830.5,2.5861]
[1766099286439,0.46438023,2832.2,2830.6,2.5808]
[1766099286605,2.6033,2831.7,2830.6,2.5808]
[1766099286936,2.6033,2831.3,2830.6,2.5808]
[1766099287701,0.562,2831.3,2830.6,2.5808]
[1766099287904,0.563,2831.3,2830.7,2.46078023]
[1766099290737,0.001,2831.3,2830.7,3.03478023]
[1766099290934,0.001,2831.3,2830.7,3.33825825]
[1766099292341,0.001,2831.3,2830.7,0.30347802]
[1766099292342,6.0713,2831.3,2830.7,0.30347802]
[1766099292907,6.0838,2831.2,2830.7,0.30347802]
[1766099293136,6.0838,2831.2,2830.6,0.46438023]
[1766099296040,6.0848,2831.2,2830.6,0.46438023]
[1766099297318,0.001,2831.2,2830.6,2.98598023]
[1766099297836,0.001,2831.2,2830.6,1.03838023]
[1766099298019,0.001,2831.2,2830.7,1.9431]
[1766099299449,0.001,2831.2,2830.2,0.6]
[1766099299748,6.0838,2831.1,2830.2,0.6]
[1766099299951,6.0838,2830.9,2830.2,0.6]
[1766099300153,0.001,2831.3,2830.5,0.46438023]
[1766099300322,0.562,2831.6,2830.8,0.46438023]
[1766099300645,0.562,2831.6,2830.9,0.573]
[1766099300849,0.562,2831.6,2831.0,1.9287]
[1766099301554,6.0838,2831.5,2830.7,0.46438023]
[1766099301751,0.562,2831.6,2830.7,0.46438023]
[1766099301923,3.5169,2831.5,2830.8,0.49313047]
[1766099302123,2.5669,2831.4,2830.8,0.49313047]
[1766099303155,0.562,2831.6,2830.9,2.493]
[1766099303333,0.001,2832.4,2830.9,2.493]
[1766099303334,6.0838,2832.2,2831.2,0.573]
[1766099303533,2.5669,2831.8,2830.9,4.55882574]
[1766099303734,6.0838,2831.8,2831.0,2.493]
[1766099303952,3.5169,2832.1,2830.9,8.09127125]
[1766099304133,6.0838,2832.0,2830.9,8.09127125]
[1766099304660,6.0838,2832.0,2831.0,2.4887]
[1766099304854,0.001,2831.5,2831.2,0.46438023]
[1766099305659,0.001,2831.5,2831.2,2.37578023]
[1766099307855,0.561,2831.9,2831.2,3.53205185]
[1766099308057,0.561,2831.9,2831.4,2.471]
[1766099308358,0.561,2832.0,2831.5,2.471]
[1766099310030,0.561,2832.0,2831.5,2.76453802]
[1766099311359,0.561,2832.0,2831.6,6.49634468]
[1766099311728,0.561,2832.0,2831.5,2.76453802]
[1766099311925,0.561,2832.0,2831.5,9.2608827]
[1766099312242,6.0838,2831.9,2831.4,0.46438023]
[1766099313637,6.0848,2831.9,2831.4,0.46438023]
[1766099315264,0.001,2831.9,2831.5,6.49634468]
[1766099315781,0.001,2832.3,2831.7,8.36434468]
[1766099315936,0.561,2832.1,2831.7,9.25787915]
[1766099316779,0.561,2832.1,2831.7,7.38987915]
[1766099316982,0.561,2832.1,2831.7,6.49634468]
[1766099317846,0.001,2832.3,2831.9,6.49634468]
[1766099318046,2.5669,2832.9,2832.2,1.8608]
[1766099318254,0.561,2833.0,2832.4,8.35714468]
[1766099318579,0.561,2833.0,2832.4,8.92814468]
[1766099319143,0.001,2833.5,2832.9,6.49634468]
[1766099319391,0.561,2834.0,2833.4,1.8562]
[1766099319535,0.561,2834.0,2833.4,2.4262]
[1766099319735,0.561,2834.0,2833.1,0.49967725]
[1766099319736,6.6448,2834.0,2833.2,0.57]
[1766099321071,6.6448,2834.0,2833.2,2.4191]
[1766099321375,2.5669,2833.9,2833.2,2.4191]
[1766099322258,6.0838,2833.9,2833.2,2.4191]
[1766099322659,0.562,2834.0,2833.3,1.8389]
[1766099322974,0.562,2834.0,2833.3,2.4089]
[1766099323160,0.562,2834.0,2833.4,0.70527023]
[1766099323361,6.442,2834.0,2833.4,0.70527023]
[1766099323560,0.562,2834.0,2832.9,0.561]
[1766099323775,0.562,2834.0,2832.4,2.72841447]
[1766099323974,2.5192,2833.4,2832.2,0.57]
[1766099324152,3.3608,2832.9,2832.1,2.3966]
[1766099324481,5.88,2832.8,2831.9,0.57]
[1766099324670,0.561,2832.9,2831.7,0.561]
[1766099324846,0.561,2832.9,2831.7,4.09244275]
[1766099324847,2.5192,2832.7,2831.7,4.09244275]
[1766099325178,0.561,2832.7,2832.0,0.57]
[1766099325475,0.561,2832.7,2832.1,1.8323]
[1766099326493,0.561,2832.8,2832.1,1.8323]
[1766099326646,6.441,2832.8,2832.1,1.8323]
[1766099327774,6.441,2832.8,2832.0,0.57]
[1766099328072,6.441,2832.8,2832.1,0.46438023]
[1766099328775,0.561,2832.8,2832.0,1.40135662]
[1766099328957,5.88,2832.7,2832.0,1.40135662]
[1766099329159,5.88,2832.6,2832.0,1.40135662]
[1766099329358,5.88,2832.6,2831.8,2.86915451]
[1766099330775,0.562,2832.8,2831.8,2.86915451]
[1766099330776,3.3608,2832.7,2831.8,2.86915451]
[1766099330969,5.88,2832.6,2831.8,2.86915451]
[1766099331292,5.88,2832.6,2831.9,0.40001545]
[1766099333457,3.52880086,2833.9,2832.0,0.03531073]
[1766099333657,3.52959412,2834.0,2832.0,0.03531073]
[1766099333658,0.001,2834.0,2832.6,0.57]
[1766099333857,0.001,2834.0,2832.1,0.561]
[1766099333858,5.88,2833.7,2832.8,2.3582]
[1766099334073,5.88,2833.7,2832.8,0.57]
[1766099334255,0.46438023,2833.8,2832.8,2.3582]
[1766099334467,0.46438023,2833.8,2832.8,1.7882]
[1766099334668,0.46438023,2833.8,2832.3,2.3582]
[1766099334885,0.46438023,2833.8,2832.4,0.74663825]
[1766099335085,3.3608,2833.3,2832.4,0.74663825]
[1766099335287,5.88,2833.1,2832.4,0.74663825]
[1766099337487,5.88,2833.2,2832.4,0.74663825]
[1766099338089,0.561,2833.3,2832.4,0.74663825]
[1766099338090,2.5192,2833.1,2832.4,0.74663825]
[1766099338395,0.001,2833.7,2832.9,0.57]
[1766099338599,0.001,2833.7,2833.2,0.57]
[1766099338925,0.562,2834.0,2833.3,1.7656]
[1766099339878,0.562,2834.0,2833.3,2.3346]
[1766099340085,0.562,2834.0,2833.4,0.23346]
[1766099342202,0.562,2834.0,2831.3,3.53193334]
[1766099342403,3.6012,2833.5,2832.1,1.7486]
[1766099342703,6.0271,2833.0,2832.1,2.78198023]
[1766099342903,6.5891,2833.0,2832.1,2.78198023]
[1766099343103,6.5891,2833.0,2832.1,6.31292654]
[1766099343306,0.562,2833.0,2832.4,1.7444]
[1766099343505,0.562,2833.0,2832.5,0.23134]
[1766099344892,0.556,2833.0,2832.5,0.23134]
[1766099345603,6.5831,2833.0,2832.5,0.23134]
[1766099345805,6.5831,2833.0,2832.3,0.569]
[1766099347299,0.556,2833.0,2832.6,1.7283]
[1766099347504,0.562,2833.1,2832.6,2.2973]
[1766099349572,0.562,2833.1,2832.2,2.2896]
[1766099349905,6.5891,2833.1,2832.2,2.75398023]
[1766099350108,6.5891,2833.1,2832.3,1.09286827]
[1766099350686,0.562,2833.1,2832.3,0.62848804]
[1766099351008,0.562,2833.1,2832.1,1.02638023]
[1766099351009,2.4259,2832.9,2832.2,0.46438023]
[1766099351322,2.4259,2832.9,2832.1,3.30838023]
[1766099351905,0.562,2833.1,2832.4,0.569]
[1766099352203,6.0271,2833.0,2832.3,0.002]
[1766099352414,6.0271,2833.0,2832.3,0.28623]
[1766099352610,0.001,2833.7,2832.8,1.7056]
[1766099352915,6.0405,2833.6,2832.8,0.562]
[1766099353102,0.001,2833.7,2832.8,0.562]
[1766099353409,6.0405,2833.5,2832.5,1.131]
[1766099353612,6.0405,2833.5,2832.6,2.2709]
[1766099353824,6.0405,2833.5,2832.7,0.28329]
[1766099354393,6.0405,2833.5,2832.7,2.55059]
[1766099356120,6.0405,2833.5,2832.7,2.54359]
[1766099357012,6.0405,2833.5,2832.8,1.6878]
[1766099357193,6.0405,2833.5,2832.8,2.2568]
[1766099357393,6.0405,2833.5,2832.9,0.254009]
[1766099359386,6.0905,2833.5,2832.9,0.254009]
[1766099360518,6.0915,2833.5,2832.9,0.254009]
[1766099363413,2.5906,2833.5,2832.9,2.481309]
[1766099364718,0.051,2833.5,2832.9,0.254009]
[1766099364905,6.6025,2833.7,2833.0,2.2157]
[1766099365320,0.562,2833.7,2832.7,0.28329]
[1766099365521,6.0405,2833.5,2832.7,2.49379]
[1766099365726,6.0405,2833.5,2832.8,2.30714472]
[1766099365891,6.0405,2833.5,2832.8,2.85624472]
[1766099366894,4.0629,2833.7,2832.9,2.1953]
[1766099367095,6.6025,2833.7,2832.9,2.1953]
[1766099368971,6.6025,2833.7,2832.9,1.00448023]
[1766099369135,6.6025,2833.7,2833.0,3.1618179]
[1766099369499,0.562,2833.7,2833.1,0.53]
[1766099369722,0.562,2833.7,2833.2,1.6491]
[1766099370413,0.562,2833.7,2833.2,2.1741]
[1766099371032,0.562,2833.7,2833.2,1.6491]
[1766099371230,0.562,2833.7,2833.2,1.86601]
[1766099372751,0.562,2833.7,2833.2,0.21691]
[1766099372956,0.562,2833.7,2833.0,2.1477]
[1766099375822,6.0365,2833.6,2833.0,2.1477]
[1766099376648,0.562,2833.7,2833.0,0.5]
[1766099376853,0.562,2833.7,2832.9,0.46638023]
[1766099377057,0.562,2833.7,2833.1,1.6263]
[1766099377364,0.001,2834.0,2833.4,0.4954]
[1766099377529,0.001,2834.0,2833.1,0.72318825]
[1766099377729,0.001,2834.0,2833.2,1.6235]
[1766099377944,6.0405,2833.9,2833.2,1.6235]
[1766099378154,6.0405,2833.9,2833.3,1.6235]
[1766099378357,0.001,2834.0,2833.3,2.39804882]
[1766099378525,6.0415,2834.0,2833.3,2.39804882]
[1766099379247,6.0415,2834.0,2833.4,1.6208]
[1766099380220,6.0415,2834.0,2833.4,2.1025]
[1766099380526,6.0415,2834.0,2833.3,0.28374882]
[1766099380856,0.001,2834.0,2833.1,0.25880802]
[1766099381061,2.5396,2833.8,2832.9,2.08188023]
[1766099381231,6.0405,2833.6,2832.9,2.08188023]
[1766099381752,0.561,2833.8,2833.0,2.0926]
[1766099381957,6.6015,2833.8,2833.1,1.6129]
[1766099382258,0.001,2834.0,2833.3,0.4726]
[1766099382457,0.001,2834.2,2833.2,0.561]
[1766099382657,0.001,2834.6,2833.2,0.561]
[1766099382658,0.001,2835.1,2833.9,3.3446]
[1766099382831,0.561,2835.0,2833.9,0.561]
[1766099383031,0.561,2835.0,2834.2,3.3446]
[1766099383330,0.001,2835.1,2834.3,0.561]
[1766099383531,0.001,2835.1,2834.6,3.3446]
[1766099383732,0.001,2835.1,2834.6,5.7364]
[1766099385931,0.001,2835.1,2834.3,0.561]
[1766099386262,0.001,2835.1,2834.4,5.7364]
[1766099386646,5.7984,2835.1,2834.4,5.7364]
[1766099388174,0.001,2835.1,2834.4,0.663186]
[1766099388673,0.001,2835.1,2834.5,5.7364]
[1766099389475,5.7974,2835.0,2834.4,0.663186]
[1766099389976,5.7974,2834.9,2834.4,0.663186]
[1766099390880,0.001,2835.1,2834.4,4.007786]
[1766099391081,5.7984,2835.1,2834.4,6.399586]
[1766099392870,0.001,2835.1,2834.5,0.6960586]
[1766099393056,0.001,2835.1,2834.6,5.7364]
[1766099393250,0.001,2835.1,2834.4,5.7364]
[1766099393452,0.001,2835.1,2834.6,3.3446]
[1766099393650,0.001,2835.1,2834.6,5.7364]
[1766099396076,0.001,2835.1,2834.3,1.02538023]
[1766099396368,0.001,2835.1,2834.4,1.02096594]
[1766099396673,0.001,2835.1,2834.5,5.7364]
[1766099396862,0.001,2835.1,2834.4,1.02096594]
[1766099396863,0.001,2835.1,2834.6,2.3918]
[1766099397053,0.001,2835.1,2834.6,5.7364]
[1766099397771,0.001,2835.1,2834.4,1.02096594]
[1766099398077,0.001,2835.1,2834.7,2.3918]
[1766099398254,0.001,2835.1,2834.7,5.7364]
[1766099399377,0.001,2835.1,2834.5,6.29385322]
[1766099399674,0.001,2835.1,2834.6,5.7364]
[1766099400670,0.001,2835.4,2834.6,5.7364]
[1766099400671,0.001,2835.4,2834.7,1.02438023]
[1766099400875,5.7974,2835.8,2835.0,2.3918]
[1766099401040,0.001,2836.0,2835.5,5.7364]
[1766099401654,5.7629,2836.0,2835.1,0.56]
[1766099401856,5.7629,2836.0,2835.2,3.3048]
[1766099402065,5.7629,2836.0,2835.3,6.27238]
[1766099403260,0.001,2836.0,2835.4,3.3048]
[1766099403452,0.001,2836.0,2835.6,5.8859]
[1766099404643,2.39,2835.9,2835.3,0.38648]
[1766099404848,0.001,2836.0,2835.3,0.38648]
[1766099405071,5.7619,2835.9,2835.3,0.38648]
[1766099406154,5.7619,2835.9,2835.4,0.41556602]
[1766099406476,0.001,2836.0,2835.6,3.3048]
[1766099406678,0.001,2836.0,2835.7,0.46438023]
[1766099407054,0.001,2836.0,2835.6,3.3048]
[1766099407055,0.001,2836.0,2835.6,3.76918023]
[1766099408051,0.001,2836.3,2835.6,0.46438023]
[1766099408373,5.7629,2836.3,2835.7,0.36054802]
[1766099408574,5.7629,2836.3,2835.7,6.24644802]
[1766099409475,2.391,2836.3,2835.7,6.24644802]
[1766099409776,0.001,2836.3,2835.7,6.24644802]
[1766099410082,0.002,2836.0,2835.8,5.8859]
[1766099410300,0.002,2836.0,2835.8,0.6246448]
[1766099410506,2.392,2836.0,2835.7,0.36054802]
[1766099410683,5.7619,2835.9,2835.4,0.41556602]
[1766099411596,0.002,2836.0,2835.5,0.46438023]
[1766099411979,0.002,2836.0,2835.7,0.46438023]
[1766099412583,0.002,2836.0,2835.5,0.46438023]
[1766099412774,0.002,2836.0,2835.6,2.4713]
[1766099412973,0.002,2836.0,2835.7,0.46438023]
[1766099414512,0.002,2836.0,2835.5,1.33725699]
[1766099415010,0.002,2836.0,2835.5,4.72005699]
[1766099415212,0.002,2836.0,2835.7,0.46438023]
[1766099415688,0.002,2836.0,2835.7,6.31848023]
[1766099416088,0.002,2836.0,2835.7,7.30273612]
[1766099416416,0.001,2836.3,2835.9,5.8541]
[1766099416708,2.5354,2836.7,2836.1,5.8541]
[1766099417293,0.56,2836.9,2836.2,7.28882134]
[1766099417494,0.46638023,2837.2,2836.6,7.28882134]
[1766099417495,5.8877,2837.1,2836.6,7.28882134]
[1766099417673,5.8877,2837.1,2836.5,5.8541]
[1766099417879,5.8877,2837.1,2836.6,7.28882134]
[1766099418123,0.002,2837.2,2836.7,1.31429213]
[1766099419834,5.8897,2838.3,2837.3,3.3828]
[1766099420116,5.8877,2838.2,2837.4,5.8541]
[1766099420517,0.562,2838.3,2837.4,5.8541]
[1766099420704,5.8877,2838.2,2837.4,5.8541]
[1766099421107,0.562,2838.3,2837.4,5.8541]
[1766099421417,2.5354,2838.1,2837.4,6.49551]
[1766099421909,5.8877,2838.1,2837.4,6.49551]
[1766099422605,5.8877,2838.1,2837.4,7.05551]
[1766099423327,5.8877,2838.1,2836.8,3.98944446]
[1766099423328,3.3523,2838.2,2836.9,5.8541]
[1766099423495,3.3523,2837.8,2837.0,0.56]
[1766099423701,5.8877,2837.7,2837.0,0.56]
[1766099424200,5.8877,2837.7,2837.1,0.46438023]
[1766099424400,5.8877,2837.7,2837.2,0.68784802]
[1766099424915,0.002,2838.1,2837.2,0.68784802]
[1766099425123,0.002,2838.1,2837.0,0.56]
[1766099425124,5.8897,2838.1,2837.0,1.02438023]
[1766099425282,3.3543,2838.1,2837.3,5.8541]
[1766099425483,2.5354,2838.0,2837.3,5.8541]
[1766099425918,5.8877,2838.0,2837.3,5.8541]
[1766099426086,2.5354,2837.7,2837.3,0.56]
[1766099426290,5.8877,2837.6,2837.3,0.56]
[1766099427204,3.3523,2838.0,2837.1,0.56]
[1766099427409,5.8877,2837.8,2837.1,0.46438023]
[1766099427718,5.8877,2837.8,2837.2,0.63184802]
[1766099428413,0.002,2838.1,2837.3,6.31848023]
[1766099428414,5.8897,2838.1,2837.3,6.31848023]
[1766099428786,0.562,2838.1,2837.3,6.31848023]
[1766099428987,5.8877,2838.0,2837.3,6.31848023]
[1766099429219,0.562,2838.1,2837.3,0.46438023]
[1766099429511,5.8877,2837.9,2837.3,0.46438023]
[1766099430917,3.3523,2838.0,2837.3,0.46438023]
[1766099431113,2.5354,2837.7,2837.1,1.02438023]
[1766099431322,5.8877,2837.7,2837.1,1.02438023]
[1766099431712,0.002,2838.1,2836.4,4.58494958]
[1766099431713,0.56,2837.8,2836.8,0.56]
[1766099431888,3.3523,2837.5,2836.9,0.46438023]
[1766099432223,3.3523,2837.5,2837.3,0.001]
[1766099432594,3.3523,2837.5,2836.9,1.15222825]
[1766099432801,0.407504,2838.1,2836.9,1.15222825]
[1766099432802,5.8877,2837.9,2837.0,2.4713]
[1766099433014,5.8877,2837.9,2837.0,2.93568023]
[1766099433216,5.8877,2837.9,2837.1,5.8541]
[1766099433411,5.8877,2837.9,2837.1,3.3828]
[1766099433618,5.8877,2837.9,2837.2,5.8541]
[1766099435416,5.8877,2837.9,2837.2,6.4141]
[1766099435931,5.8897,2838.1,2837.4,3.3828]
[1766099436138,5.8897,2838.1,2837.4,5.8541]
[1766099438933,5.8897,2838.1,2837.3,0.64141]
[1766099439137,5.8897,2838.1,2837.2,0.56]
[1766099439138,5.8897,2838.1,2837.5,3.3828]
[1766099439345,0.002,2838.1,2837.4,0.001]
[1766099439547,5.8877,2837.8,2837.4,0.001]
[1766099443523,0.002,2838.1,2836.7,5.8295]
[1766099443524,2.5953,2837.7,2836.7,5.8295]
[1766099443728,3.5154,2837.4,2836.3,3.4879]
[1766099443910,3.5154,2837.4,2836.2,1.06046606]
[1766099443911,3.5154,2837.9,2836.9,7.28107743]
[1766099444124,1.52402966,2838.0,2836.8,5.8295]
[1766099444125,0.56,2837.8,2836.8,5.8295]
[1766099444326,3.5154,2837.7,2836.8,3.4879]
[1766099444638,6.1107,2837.3,2836.8,0.56]
[1766099444836,0.56,2837.8,2836.8,0.56]
[1766099445037,3.5154,2837.5,2836.8,0.56]
[1766099445202,2.5953,2837.2,2836.8,0.56]
[1766099445409,6.1107,2837.2,2836.8,0.56]
[1766099445649,6.1107,2837.6,2836.8,0.56]
[1766099445852,7.28107743,2837.7,2836.8,0.56]
[1766099446148,3.5154,2837.6,2836.8,0.56]
[1766099446356,2.5953,2837.3,2836.4,10.08705766]
[1766099446555,2.5953,2836.9,2836.4,0.56]
[1766099446846,6.1107,2836.8,2836.4,0.56]
[1766099447226,6.1107,2836.8,2836.4,1.02438023]
[1766099447541,6.1107,2837.3,2836.5,4.31844577]
[1766099447738,6.1107,2837.3,2836.6,2.3416]
[1766099447945,6.6707,2837.3,2836.6,5.8295]
[1766099448244,6.1107,2837.2,2836.6,5.8295]
[1766099452413,0.56,2837.4,2836.4,0.56]
[1766099452638,0.56,2837.4,2836.4,1.02438023]
[1766099452838,2.5953,2837.0,2836.4,1.02438023]
[1766099453138,0.56,2837.4,2836.4,1.02438023]
[1766099453139,6.1107,2836.9,2836.4,1.02438023]
[1766099454447,6.1107,2836.9,2836.5,0.001]
[1766099455766,0.56,2837.4,2836.5,0.001]
[1766099455926,3.5154,2836.6,2836.2,0.001]
[1766099456133,6.1107,2836.5,2836.2,0.001]
[1766099460677,2.5953,2836.8,2836.2,3.4889]
[1766099460971,2.5953,2836.8,2836.2,5.8305]
[1766099461458,6.1107,2836.8,2836.2,5.8305]
[1766099462469,6.1107,2836.8,2836.6,10.0]
[1766099462865,0.405504,2837.3,2836.6,10.0]
[1766099463072,2.3326,2836.8,2836.6,10.0]
[1766099463370,5.7761,2836.7,2836.6,10.0]
[1766099464269,0.56,2837.0,2836.2,0.001]
[1766099464477,5.5693,2836.9,2836.2,0.001]
[1766099464660,3.4435,2836.9,2836.2,0.001]
[1766099464865,2.1258,2836.8,2836.2,0.001]
[1766099465171,3.4435,2836.7,2836.2,0.001]
[1766099465372,0.56,2837.0,2836.2,0.001]
[1766099465373,5.5625,2836.6,2836.2,0.001]
[1766099466043,5.7761,2836.5,2836.1,0.001]
[1766099466249,3.4435,2836.5,2836.1,0.001]
[1766099466447,2.3326,2836.7,2836.1,0.001]
[1766099466680,5.7761,2836.7,2836.1,0.001]
[1766099468020,3.4455,2837.4,2836.6,7.285157]
[1766099468173,0.002,2837.4,2836.8,2.4126]
[1766099468373,0.002,2837.4,2836.8,5.6581]
[1766099468589,3.4455,2837.4,2836.8,5.6581]
[1766099468805,5.7781,2837.4,2836.8,5.6581]
[1766099469111,2.3346,2837.4,2836.8,5.6581]
[1766099469412,3.4435,2837.3,2836.8,5.6581]
[1766099470808,3.4435,2837.3,2836.6,0.56]
[1766099471012,3.4435,2837.2,2836.6,0.56]
[1766099471207,5.7669,2837.2,2836.6,0.56]
[1766099471504,5.7669,2837.2,2836.6,6.83991]
[1766099471888,5.7669,2837.2,2836.6,1.18181]
[1766099472098,3.4435,2837.1,2836.6,0.56]
[1766099472475,3.4435,2837.1,2836.6,6.2181]
[1766099472687,2.3234,2837.2,2836.6,6.2181]
[1766099473805,5.6444,2837.2,2836.6,6.2181]
[1766099474009,0.56,2837.2,2836.1,0.46538023]
[1766099474243,0.56,2837.2,2836.1,7.69134825]
[1766099474410,0.56,2837.2,2836.2,2.90918023]
[1766099474610,5.6189,2837.1,2836.2,2.90918023]
[1766099474837,0.56,2837.2,2836.2,2.90918023]
[1766099475132,2.2912,2837.1,2836.2,2.90918023]
[1766099475325,0.56,2837.2,2836.2,2.90918023]
[1766099475526,2.2912,2836.8,2836.2,2.90918023]
[1766099475709,5.6122,2836.8,2836.2,2.90918023]
[1766099479029,5.6122,2836.8,2836.2,6.13468023]
[1766099479420,5.5858,2836.7,2836.2,2.90918023]
[1766099480339,5.5858,2836.7,2836.2,6.58136506]
[1766099480538,3.321,2836.7,2836.2,6.58136506]
[1766099480838,0.002,2836.8,2836.2,6.58136506]
[1766099481018,3.321,2836.7,2836.1,0.001]
[1766099481222,0.562,2836.8,2836.1,0.001]
[1766099481543,6.135,2836.8,2836.1,5.6713]
[1766099481768,5.573,2836.7,2836.1,5.6713]
[1766099482261,3.321,2836.6,2836.1,5.6713]
[1766099482763,5.5667,2836.6,2836.1,5.6713]
[1766099483263,5.5667,2836.6,2836.1,0.001]
[1766099483638,0.002,2836.8,2836.0,0.001]
[1766099484044,5.5532,2836.7,2836.0,0.001]
[1766099484429,2.2322,2836.6,2836.0,0.001]
[1766099484666,2.2322,2836.4,2836.0,0.001]
[1766099484962,3.321,2836.3,2836.0,0.001]
[1766099485158,5.5471,2836.3,2836.0,0.001]
[1766099487135,3.321,2836.2,2836.0,0.001]
[1766099489895,3.321,2836.1,2835.8,1.02438023]
[1766099490455,3.321,2836.1,2835.8,0.56]
[1766099490881,2.2019,2836.2,2835.8,0.56]
[1766099491678,0.56,2836.5,2835.8,0.56]
[1766099491879,5.5044,2836.2,2835.8,0.56]
[1766099493013,3.321,2836.1,2835.8,0.56]
[1766099493690,3.321,2836.1,2835.6,0.001]
[1766099494197,3.321,2836.1,2835.6,2.4458]
[1766099494494,3.321,2836.1,2835.7,0.46438023]
[1766099496396,5.4816,2836.0,2835.6,0.46538023]
[1766099497197,5.4816,2836.0,2835.8,0.001]
[1766099498918,2.143,2836.4,2835.6,0.001]
[1766099499083,2.143,2836.4,2835.4,0.001]
[1766099499084,5.463,2836.4,2835.4,0.001]
[1766099499283,1.12,2836.5,2835.5,5.6703]
[1766099499487,2.142,2836.3,2835.5,5.6703]
[1766099499690,2.142,2836.1,2835.4,0.001]
[1766099499883,5.463,2835.9,2835.4,0.001]
[1766099500098,5.463,2835.9,2835.4,5.6713]
[1766099504120,7.845157,2836.5,2835.4,3.2265]
[1766099504339,2.57648023,2836.6,2835.9,3.3228]
[1766099504537,2.1121,2836.6,2836.0,5.6718]
[1766099504720,5.2907,2836.6,2836.0,5.6718]
[1766099505115,5.2855,2836.6,2835.8,5.6718]
[1766099505322,0.562,2836.7,2835.8,5.6718]
[1766099505511,2.1069,2836.5,2835.8,5.6718]
[1766099505711,3.1786,2836.3,2835.8,5.6718]
[1766099505907,5.2774,2836.3,2835.7,0.56]
[1766099506112,3.1786,2836.2,2835.7,0.56]
[1766099506841,2.0988,2836.1,2835.7,0.56]
[1766099507032,5.2774,2836.1,2835.7,0.56]